[Event "Paris GCT Rapid"]
[Site "Paris"]
[Date "2017.06.23"]
[Round "8"]
[White "Bacrot, Etienne"]
[Black "Grischuk, Alexander"]
[Result "0-1"]
[ECO "B31"]
[WhiteElo "2708"]
[BlackElo "2761"]
[PlyCount "96"]
[EventDate "2017.06.21"]
[EventType "tourn (rapid)"]
[EventRounds "9"]
[EventCountry "FRA"]
[EventCategory "22"]
[SourceTitle "CBM 179"]
[Source "ChessBase"]
[SourceDate "2017.07.12"]
[SourceVersion "1"]
[SourceVersionDate "2017.07.12"]
[SourceQuality "1"]
[TimeControl "1500"]

1. e4 {[%emt 0:00:00]} c5 {[%emt 0:00:00]} 2. Nf3 {[%emt 0:00:00]} Nc6 {
[%emt 0:00:00]} 3. Bb5 {[%emt 0:00:00]} g6 {[%emt 0:00:24]} 4. O-O {[%emt 0:00:
02]} Bg7 {[%emt 0:00:00]} 5. Re1 {[%emt 0:00:00]} e5 {[%emt 0:00:14]} 6. b4 {
[%emt 0:02:15]} cxb4 {[%emt 0:06:03]} 7. a3 {[%emt 0:00:00]} b3 {[%emt 0:01:16]
} 8. cxb3 {[%emt 0:05:40]} Nge7 {[%emt 0:00:00]} 9. Bb2 {[%emt 0:01:30]} O-O {
[%emt 0:00:00]} 10. b4 {[%emt 0:01:31]} a6 {[%emt 0:03:09]} 11. Ba4 {[%emt 0:
00:58]} d5 {[%emt 0:06:34]} 12. exd5 {[%emt 0:00:00]} Qxd5 {[%emt 0:00:00]} 13.
Nc3 {[%emt 0:00:00]} Qd3 {[%emt 0:00:42]} 14. Ne4 {[%emt 0:01:25]} b6 {[%emt 0:
00:00]} 15. Rc1 {[%emt 0:05:24]} Bb7 {[%emt 0:00:00]} 16. Qe2 {[%emt 0:00:00]}
Qd5 {[%emt 0:01:51]} 17. Qe3 {[%emt 0:01:18]} Qd8 {[%emt 0:00:47]} 18. Qg5 {
[%emt 0:01:01]} f6 {[%emt 0:00:41]} 19. Qe3 {[%emt 0:00:20]} Kh8 {[%emt 0:00:
00]} 20. Qe2 {[%emt 0:01:15]} Rc8 {[%emt 0:00:07]} 21. Bb3 {[%emt 0:00:00]} Nd5
{[%emt 0:01:17]} 22. d4 {[%emt 0:00:19]} Nxd4 {[%emt 0:00:28]} 23. Nxd4 {
[%emt 0:00:06]} Rxc1 {[%emt 0:00:00]} 24. Rxc1 {[%emt 0:00:30]} exd4 {[%emt 0:
00:00]} 25. Qd2 {[%emt 0:00:31]} Re8 {[%emt 0:00:40]} 26. Qxd4 {[%emt 0:00:35]}
Nf4 {[%emt 0:00:08]} 27. Qxd8 {[%emt 0:00:00]} Rxd8 {[%emt 0:00:00]} 28. Ng3 {
[%emt 0:00:06]} h5 {[%emt 0:00:16]} 29. Rc7 {[%emt 0:00:00]} Bxg2 {[%emt 0:00:
01]} 30. Bc1 {[%emt 0:00:00]} Bd5 {[%emt 0:00:03]} 31. Bxd5 {[%emt 0:00:02]}
Nxd5 {[%emt 0:00:00]} 32. Rc6 {[%emt 0:00:00]} Kh7 {[%emt 0:00:05]} 33. Ne4 {
[%emt 0:00:00]} Ne7 {[%emt 0:00:01]} 34. Rc7 {[%emt 0:00:00]} Rd1+ {[%emt 0:00:
00]} 35. Kg2 {[%emt 0:00:00]} Nd5 {[%emt 0:00:00]} 36. Rc6 {[%emt 0:00:00]} g5
{[%emt 0:00:00]} 37. Bd2 {[%emt 0:00:00]} g4 {[%emt 0:00:00]} 38. Rd6 {[%emt 0:
00:00]} Ne7 {[%emt 0:00:00]} 39. Rd7 {[%emt 0:00:00]} Nf5 {[%emt 0:00:00]} 40.
Nxf6+ {[%emt 0:00:00]} Kg6 {[%emt 0:00:00]} 41. Ne4 {[%emt 0:00:00]} Be5 {
[%emt 0:00:00]} 42. f4 {[%emt 0:00:00]} Bxf4 {[%emt 0:00:00]} 43. Rd3 {[%emt 0:
00:01]} Nh4+ {[%emt 0:00:00]} 44. Kf2 {[%emt 0:00:00]} Bxh2 {[%emt 0:00:00]}
45. Ke2 {[%emt 0:00:00]} Ra1 {[%emt 0:00:00]} 46. Rc3 {[%emt 0:00:00]} Nf3 {
[%emt 0:00:00]} 47. Be3 {[%emt 0:00:00]} Kf5 {[%emt 0:00:00]} 48. Nd6+ {
[%emt 0:00:00]} Bxd6 {[%emt 0:00:00]} 0-1